bitfinex-derivatives/quotes_BTCF0:USTF0_20251128
["timestamp","ask_amount","ask_price","bid_price","bid_amount"]
[1764349406066,0.07877,91089.0,91088.0,0.16210467]
[1764349406271,0.15318,91089.0,91088.0,0.16210467]
[1764349406472,0.51318,91089.0,91088.0,0.16210467]
[1764349406668,0.15318,91089.0,91088.0,0.16210467]
[1764349407264,0.07877,91089.0,91088.0,0.17862582]
[1764349407576,0.15318,91089.0,91088.0,0.17862582]
[1764349407960,0.0109769,91091.0,91090.0,0.15385]
[1764349408164,0.0109765,91095.0,91094.0,0.15385]
[1764349408473,0.07682,91095.0,91094.0,0.15385]
[1764349409071,0.0877964,91095.0,91094.0,0.15385]
[1764349409865,0.07682,91095.0,91094.0,0.15385]
[1764349410469,0.15123,91095.0,91094.0,0.15385]
[1764349410972,0.0109752,91106.0,91105.0,0.15385]
[1764349411170,0.03382,91130.0,91105.0,0.15385]
[1764349411171,0.0109744,91112.0,91111.0,0.15385]
[1764349411467,0.07682,91112.0,91111.0,0.15385]
[1764349412377,0.03822,91130.0,91112.0,0.15385]
[1764349412566,0.1622041,91115.0,91114.0,0.15385]
[1764349412767,0.07682,91115.0,91114.0,0.15385]
[1764349413168,0.362204,91115.0,91114.0,0.15385]
[1764349413566,0.1622045,91111.0,91110.0,0.15385]
[1764349414274,0.07682,91111.0,91110.0,0.1648246]
[1764349414473,0.1622037,91118.0,91117.0,0.15385]
[1764349414775,0.5122037,91118.0,91117.0,0.15385]
[1764349414978,0.5222037,91118.0,91117.0,0.15385]
[1764349416474,0.5222037,91118.0,91110.0,0.08420828]
[1764349416475,0.1622045,91111.0,91110.0,0.01648369]
[1764349416670,0.1622054,91103.0,91102.0,0.00016467]
[1764349416870,0.7222054,91103.0,91102.0,0.00016467]
[1764349417271,0.8922054,91103.0,91102.0,0.00016467]
[1764349418177,0.5022054,91103.0,91102.0,0.00016467]
[1764349418371,0.9922054,91103.0,91102.0,0.00016467]
[1764349419176,0.1622081,91081.0,91080.0,0.00999999]
[1764349419480,0.1622081,91081.0,91074.0,0.1648289]
[1764349419481,0.15123,91075.0,91074.0,0.1648289]
[1764349419681,0.0109784,91079.0,91078.0,0.15385]
[1764349419881,0.1622084,91079.0,91078.0,0.15385]
[1764349420081,0.0109786,91077.0,91074.0,0.01611595]
[1764349420383,0.0109786,91077.0,91070.0,0.04675]
[1764349420384,0.0877993,91071.0,91070.0,0.2006]
[1764349420577,0.1622093,91071.0,91070.0,0.2006]
[1764349421672,0.0877993,91071.0,91070.0,0.2006]
[1764349421883,0.0109793,91071.0,91070.0,0.2006]
[1764349422174,0.010979,91074.0,91073.0,0.15385]
[1764349422372,0.00016406,91085.0,91074.0,0.0109789]
[1764349422373,0.0109788,91076.0,91074.0,0.0109789]
[1764349422572,0.15123,91077.0,91076.0,0.0881287]
[1764349422774,0.15123,91077.0,91076.0,0.1648287]
[1764349423177,0.15123,91077.0,91076.0,0.15385]
[1764349423382,0.01114166,91085.0,91084.0,0.15385]
[1764349424472,0.00016406,91085.0,91084.0,0.15385]
[1764349425780,0.15139406,91085.0,91084.0,0.15385]
[1764349425983,0.1622081,91081.0,91080.0,0.07715]
[1764349427281,0.15123,91081.0,91080.0,0.15385]
[1764349427476,0.07698406,91085.0,91084.0,0.15385]
[1764349427682,0.00016406,91085.0,91084.0,0.15385]
[1764349428173,0.0877957,91101.0,91100.0,0.2006]
[1764349428578,0.1622057,91101.0,91100.0,0.2006]
[1764349429696,0.0877957,91101.0,91100.0,0.2006]
[1764349429887,0.1622057,91101.0,91100.0,0.2006]
[1764349430790,0.1622057,91101.0,91100.0,0.15385]
[1764349431981,0.15123,91092.0,91091.0,0.00016467]
[1764349432294,0.07682,91092.0,91091.0,0.15401467]
[1764349432684,1.03123,91092.0,91091.0,0.00016467]
[1764349436899,1.03223,91092.0,91091.0,0.00016467]
[1764349437198,0.1620389,91074.0,91073.0,0.14095]
[1764349437596,0.15106,91074.0,91073.0,0.14095]
[1764349439003,0.15122467,91083.0,91082.0,0.14095]
[1764349439303,0.20122467,91083.0,91082.0,0.14095]
[1764349439503,0.00016467,91083.0,91082.0,0.14095]
[1764349440605,0.0109731,91123.0,91111.0,0.14095]
[1764349440903,0.0109731,91123.0,91110.0,0.04655]
[1764349440904,0.0109745,91111.0,91110.0,0.26023071]
[1764349441203,1.0020331,91123.0,91113.0,0.14095]
[1764349441204,0.1620342,91114.0,91113.0,0.14095]
[1764349441390,0.1620348,91108.0,91107.0,0.14095]
[1764349441592,0.0109745,91111.0,91110.0,0.07345]
[1764349441797,0.1620345,91111.0,91110.0,0.1875]
[1764349442198,0.17392,91127.0,91108.0,0.14095]
[1764349442199,0.15106,91109.0,91108.0,0.14095]
[1764349442403,0.15106,91109.0,91095.0,0.07361467]
[1764349442404,0.1620363,91096.0,91095.0,0.07361467]
[1764349442903,0.1620363,91096.0,91095.0,0.00016467]
[1764349442904,0.5220363,91096.0,91095.0,0.00016467]
[1764349445601,0.9430363,91096.0,91095.0,0.00016467]
[1764349446410,0.96548669,91096.0,91095.0,0.00016467]
[1764349447208,0.72548669,91096.0,91095.0,0.00016467]
[1764349447901,0.98548669,91096.0,91095.0,0.00016467]
[1764349449309,0.18548669,91096.0,91095.0,0.14111467]
[1764349449907,0.58448669,91096.0,91095.0,0.14111467]
[1764349450108,0.58548669,91096.0,91095.0,0.14111467]
[1764349450511,0.58548669,91096.0,91095.0,0.00016467]
[1764349450708,0.94548669,91096.0,91095.0,0.00016467]
[1764349451008,0.94448669,91096.0,91095.0,0.00016467]
[1764349451203,0.94548669,91096.0,91095.0,0.00016467]
[1764349452397,0.9230363,91096.0,91095.0,0.00016467]
[1764349453106,0.9330363,91096.0,91095.0,0.00016467]
[1764349454206,0.1620375,91086.0,91084.0,0.05905733]
[1764349454403,0.1620375,91086.0,91062.0,0.14535897]
[1764349454404,0.1419485,91078.0,91076.0,0.05905733]
[1764349454609,0.13097,91077.0,91076.0,0.05905733]
[1764349454809,0.1419487,91076.0,91075.0,0.05905733]
[1764349455010,0.5619487,91076.0,91075.0,0.05905733]
[1764349455308,1.0019487,91076.0,91075.0,0.05905733]
[1764349455513,0.1419487,91076.0,91075.0,0.19036733]
[1764349455707,0.5219487,91076.0,91075.0,0.19036733]
[1764349455908,0.13097,91075.0,91074.0,0.05905733]
[1764349456118,0.13097,91075.0,91066.0,0.00016467]
[1764349456119,0.13097,91067.0,91066.0,0.00016467]
[1764349456423,1.10481,91067.0,91066.0,0.00016467]
[1764349456919,0.85481,91067.0,91066.0,0.00016467]
[1764349457413,1.16481,91067.0,91066.0,0.00016467]
[1764349457817,1.16581,91067.0,91066.0,0.00016467]
[1764349458013,0.001,91067.0,91066.0,0.13147467]
[1764349458207,0.001,91067.0,91066.0,0.53147467]
[1764349458407,0.001,91067.0,91066.0,0.13147467]
[1764349459517,0.03248,91080.0,91079.0,0.13131]
[1764349460217,0.0993,91080.0,91079.0,0.13131]
[1764349460416,0.03248,91080.0,91079.0,0.13131]
[1764349460622,0.03248,91080.0,91070.0,0.30387531]
[1764349460623,0.0109785,91078.0,91070.0,0.04787999]
[1764349460818,0.27,91078.0,91070.0,0.04787999]
[1764349461023,0.06682,91071.0,91070.0,0.17918999]
[1764349461219,0.06682,91071.0,91070.0,0.16919]
[1764349461414,0.13097,91071.0,91070.0,0.16919]
[1764349465424,0.13097,91071.0,91066.0,0.00016467]
[1764349465425,0.13097,91067.0,91066.0,0.06597467]
[1764349465819,0.13097,91067.0,91066.0,0.13147467]
[1764349466924,0.13097,91067.0,91066.0,0.00016467]
[1764349466925,0.92097,91067.0,91066.0,0.00016467]
[1764349468122,0.1354603,91063.0,91062.0,0.0151228]
[1764349468319,0.12448,91054.0,91053.0,0.17735]
[1764349468521,0.12448,91047.0,91046.0,0.13088405]
[1764349468719,0.0109808,91059.0,91046.0,0.13088405]
[1764349469023,0.1354611,91057.0,91056.0,0.06719]
[1764349469325,0.8354611,91057.0,91056.0,0.06719]
[1764349469622,0.12448,91051.0,91050.0,0.18039999]
[1764349469822,0.12448,91051.0,91050.0,0.1704]
[1764349470325,0.06345,91051.0,91050.0,0.1704]
[1764349471117,0.1354606,91061.0,91060.0,0.1704]
[1764349471318,0.1954606,91061.0,91060.0,0.1704]
[1764349471526,0.5454606,91061.0,91060.0,0.1704]
[1764349471717,0.53448,91061.0,91060.0,0.1704]
[1764349472119,0.52448,91061.0,91060.0,0.1704]
[1764349472520,0.1354566,91093.0,91092.0,0.06719]
[1764349472720,0.1354577,91085.0,91084.0,0.1308]
[1764349473024,0.4954577,91085.0,91084.0,0.1308]
[1764349473726,0.1354581,91081.0,91080.0,0.00999999]
[1764349473922,0.12448,91076.0,91075.0,0.00016467]
[1764349474118,0.12448,91076.0,91075.0,0.13096467]
[1764349475828,0.12448,91076.0,91075.0,0.14666245]
[1764349476129,0.12448,91076.0,91075.0,0.01586245]
[1764349476423,0.50448,91076.0,91075.0,0.01586245]
[1764349476828,0.92448,91076.0,91075.0,0.01586245]
[1764349480228,0.92448,91076.0,91075.0,0.00016467]
[1764349480432,0.1354605,91061.0,91060.0,0.1704]
[1764349481132,0.1354593,91071.0,91070.0,0.1704]
[1764349481532,0.1354593,91071.0,91070.0,0.1308]
[1764349482032,0.1354604,91062.0,91061.0,0.00016467]
[1764349482334,0.9754604,91062.0,91061.0,0.00016467]
[1764349483128,1.1493004,91062.0,91061.0,0.00016467]
[1764349483531,0.1354622,91047.0,91040.0,0.0396]
[1764349483729,0.8754622,91047.0,91040.0,0.04959999]
[1764349483936,0.8754622,91047.0,91046.0,0.06727405]
[1764349484233,0.23448,91047.0,91046.0,0.13088405]
[1764349484438,0.47448,91047.0,91046.0,0.13088405]
[1764349484628,0.91448,91047.0,91046.0,0.13088405]
[1764349485643,0.91448,91047.0,91046.0,8.405e-05]
[1764349486728,0.91448,91047.0,91046.0,0.06727405]
[1764349487432,0.50448,91047.0,91046.0,0.13088405]
[1764349487628,0.29836,91047.0,91046.0,0.14646611]
[1764349493145,0.0109822,91048.0,91046.0,0.14646611]
[1764349493146,0.00016467,91056.0,91055.0,0.1308]
[1764349494135,0.12464467,91056.0,91055.0,0.1308]
[1764349495035,0.12448,91051.0,91050.0,0.14079999]
[1764349495742,0.12448,91051.0,91050.0,0.1308]
[1764349498544,0.00016467,91056.0,91055.0,0.12413]
[1764349499533,0.48278467,91056.0,91055.0,0.12413]
[1764349499737,0.48278467,91056.0,91055.0,0.06618]
[1764349499938,0.48278467,91056.0,91055.0,0.12413]
[1764349500240,0.48278467,91056.0,91046.0,0.39579143]
[1764349500241,0.12262,91047.0,91046.0,0.39579143]
[1764349500444,0.13376577,91056.0,91055.0,0.12413]
[1764349500650,0.92376577,91056.0,91055.0,0.12413]
[1764349500841,0.92376577,91056.0,91055.0,0.06618]
[1764349501141,0.53376577,91056.0,91055.0,0.06618]
[1764349501445,0.00016467,91056.0,91055.0,0.12413]
[1764349501839,0.0345661,91098.0,91072.0,0.12413]
[1764349502037,0.1335973,91088.0,91087.0,0.12413]
[1764349502237,0.12262,91081.0,91080.0,0.16045]
[1764349502547,0.38262,91081.0,91080.0,0.16045]
[1764349502744,0.62262,91081.0,91080.0,0.16045]
[1764349502943,0.49262,91081.0,91080.0,0.12413]
[1764349503245,0.12262,91072.0,91071.0,0.16061467]
[1764349503446,0.96262,91072.0,91071.0,0.00016467]
[1764349504139,0.57262,91072.0,91071.0,0.12429467]
[1764349504448,0.5835992,91072.0,91071.0,0.13953434]
[1764349504847,1.0035992,91072.0,91071.0,0.13953434]
[1764349505043,1.0035992,91072.0,91071.0,0.01540434]
[1764349505242,1.0045992,91072.0,91071.0,0.01540434]
[1764349505648,0.6545992,91072.0,91071.0,0.01540434]
[1764349505948,0.51362,91072.0,91071.0,0.13953434]
[1764349506153,0.87362,91072.0,91071.0,0.13953434]
[1764349508245,0.87362,91072.0,91071.0,0.00016467]
[1764349508442,0.51362,91072.0,91071.0,0.06634467]
[1764349508649,0.92362,91072.0,91071.0,0.12429467]
[1764349509054,0.58362,91072.0,91071.0,0.12429467]
[1764349509546,0.32362,91072.0,91071.0,0.12429467]
[1764349510851,0.19362,91072.0,91071.0,0.12429467]
[1764349511553,0.95362,91072.0,91071.0,0.12429467]
[1764349512245,0.95362,91072.0,91071.0,0.00016467]
[1764349513047,0.68362,91072.0,91071.0,0.12429467]
[1764349513242,0.37362,91072.0,91071.0,0.12429467]
[1764349514551,0.98362,91072.0,91071.0,0.00016467]
[1764349515943,0.001,91072.0,91071.0,0.14378467]
[1764349516853,0.001,91072.0,91071.0,0.15476397]
[1764349517957,0.0656483,91080.0,91079.0,0.11132]
[1764349518252,0.1956483,91080.0,91079.0,0.11132]
[1764349518846,0.00016467,91090.0,91085.0,0.11132]
[1764349519048,0.00016467,91090.0,91089.0,0.11132]
[1764349523459,0.00016467,91090.0,91089.0,0.14362]
[1764349524352,0.1221948,91109.0,91108.0,0.11132]
[1764349524550,0.05,91109.0,91108.0,0.11132]
[1764349524760,0.64276,91130.0,91125.0,0.14362]
[1764349524962,0.03295,91161.0,91140.0,0.00999999]
[1764349525260,0.11122,91151.0,91150.0,0.31482862]
[1764349525457,0.99122,91151.0,91150.0,0.11132]
[1764349525655,1.0021897,91151.0,91150.0,0.11132]
[1764349525961,0.18122,91151.0,91150.0,0.11132]
[1764349526164,0.10801436,91160.0,91159.0,0.10703]
[1764349526453,0.05016436,91160.0,91159.0,0.10703]
[1764349526667,0.00027423,91166.0,91159.0,0.10703]
[1764349526668,0.00027423,91166.0,91165.0,0.10703]
[1764349528353,0.89812423,91166.0,91165.0,0.10703]
[1764349528758,0.05346,91161.0,91160.0,0.00999999]
[1764349528959,0.55785,91161.0,91160.0,0.10703]
[1764349529165,0.05346,91150.0,91149.0,0.12114048]
[1764349529362,0.05346,91144.0,91143.0,0.0869]
[1764349529552,0.05346,91144.0,91143.0,0.13933]
[1764349529967,0.39785,91144.0,91143.0,0.13933]
[1764349530460,0.10785,91144.0,91143.0,0.13933]
[1764349532657,0.09346,91144.0,91143.0,0.13933]
[1764349532863,0.0109693,91154.0,91153.0,0.10703]
[1764349533056,0.5044293,91154.0,91153.0,0.10703]
[1764349533255,0.9488193,91154.0,91153.0,0.10703]
[1764349533654,0.1188204,91145.0,91144.0,0.31053862]
[1764349533853,0.10785,91142.0,91141.0,0.01426723]
[1764349534061,0.24785,91142.0,91141.0,0.12129723]
[1764349534260,0.10785,91142.0,91141.0,0.12129723]
[1764349534656,0.0109707,91142.0,91141.0,0.12129723]
[1764349534858,0.001,91154.0,91153.0,0.10703]
[1764349536366,0.01701,91179.0,91165.0,0.10703]
[1764349536367,0.06470213,91166.0,91165.0,0.10703]
[1764349536660,0.16470213,91166.0,91165.0,0.10703]
[1764349537068,0.21909213,91166.0,91165.0,0.10703]
[1764349537271,0.11909213,91166.0,91165.0,0.10703]
[1764349537568,0.10812423,91166.0,91165.0,0.10703]
[1764349537768,0.00027423,91166.0,91165.0,0.10703]
[1764349539866,0.00127423,91166.0,91165.0,0.10703]
[1764349540064,0.37127423,91166.0,91165.0,0.10703]
[1764349540263,0.42473423,91166.0,91165.0,0.10703]
[1764349540461,0.47912423,91166.0,91165.0,0.10703]
[1764349540666,0.47812423,91166.0,91165.0,0.10703]
[1764349541758,0.89812423,91166.0,91165.0,0.10703]
[1764349541963,0.89812423,91166.0,91156.0,0.20350862]
[1764349541964,0.10785,91151.0,91150.0,0.06459999]
[1764349542271,0.25785,91151.0,91150.0,0.10703]
[1764349543969,0.10785,91147.0,91146.0,0.01424245]
[1764349544175,0.10785,91142.0,91141.0,0.3107032]
[1764349544472,0.10785,91142.0,91141.0,0.10719458]
[1764349545275,0.68785,91142.0,91141.0,0.10719458]
[1764349545874,0.41785,91142.0,91141.0,0.10719458]
[1764349546269,0.41785,91142.0,91141.0,0.12152738]
[1764349547371,0.24785,91142.0,91141.0,0.12152738]
[1764349549281,0.10785,91142.0,91141.0,0.12152738]
[1764349549570,0.05346,91142.0,91141.0,0.12152738]
[1764349549976,0.10785,91142.0,91141.0,0.12152738]
[1764349551676,0.91233504,91142.0,91141.0,0.00016458]
[1764349551880,0.91233504,91142.0,91120.0,0.03354]
[1764349551881,0.10785,91128.0,91127.0,0.10703]
[1764349552074,0.4888224,91128.0,91127.0,0.10703]
[1764349552469,0.0109706,91144.0,91127.0,0.10703]
[1764349552674,0.02450697,91143.0,91130.0,0.20350862]
[1764349552871,0.10785,91131.0,91130.0,0.31053862]
[1764349553190,0.10785,91131.0,91130.0,0.10703]
[1764349553677,0.0109719,91133.0,91132.0,0.10703]
[1764349553883,0.05346,91133.0,91132.0,0.10703]
[1764349554177,0.07802783,91133.0,91132.0,0.10703]
[1764349554968,0.05346,91133.0,91132.0,0.10703]
[1764349555577,0.10801458,91144.0,91143.0,0.14057]
[1764349555782,0.02472988,91144.0,91143.0,0.14057]
[1764349556170,0.00016458,91144.0,91143.0,0.14057]
[1764349556377,0.0109684,91162.0,91161.0,0.03277]
[1764349556575,0.33456729,91162.0,91161.0,0.14042]
[1764349556775,0.68818729,91162.0,91161.0,0.14042]
[1764349557388,0.10362,91144.0,91143.0,0.14119]
[1764349557677,0.10362,91152.0,91151.0,0.10765]
[1764349557884,0.02443685,91152.0,91151.0,0.10765]
[1764349558083,0.1145881,91164.0,91163.0,0.10765]
[1764349558270,0.1145885,91161.0,91160.0,0.14042]
[1764349558469,0.5290314,91161.0,91160.0,0.14042]
[1764349558982,0.10362,91155.0,91154.0,0.3113232]
[1764349559182,0.1280629,91155.0,91154.0,0.3113232]
[1764349560285,0.5080629,91155.0,91154.0,0.10781458]
[1764349560485,0.0244429,91155.0,91154.0,0.10781458]
[1764349560784,0.0646283,91163.0,91162.0,0.10765]
[1764349560979,0.57904299,91163.0,91162.0,0.10765]
[1764349561484,0.10362,91155.0,91154.0,0.10781458]
[1764349562086,0.89362,91155.0,91154.0,0.00016458]
[1764349562275,0.91809692,91155.0,91154.0,0.00016458]
[1764349562474,0.10362,91129.0,91128.0,0.10765]
[1764349562678,0.05366,91129.0,91128.0,0.10765]
[1764349563288,0.1145918,91133.0,91132.0,0.10765]
[1764349563477,0.59909356,91133.0,91132.0,0.10765]
[1764349563673,0.58812176,91133.0,91132.0,0.10765]
[1764349563882,0.20450176,91133.0,91132.0,0.10765]
[1764349564080,0.15812176,91133.0,91132.0,0.10765]
[1764349564284,0.50812176,91133.0,91132.0,0.10765]
[1764349564683,0.15812176,91133.0,91132.0,0.10765]
[1764349564886,0.41812176,91133.0,91132.0,0.10765]
[1764349565082,0.41812176,91133.0,91132.0,0.13365]
[1764349566588,0.02450176,91133.0,91132.0,0.13365]
[1764349566789,0.02550176,91133.0,91132.0,0.13365]
[1764349567484,0.0657917,91188.0,91146.0,0.10765]
[1764349567485,0.0109701,91147.0,91146.0,0.10765]
[1764349567793,0.08835783,91166.0,91149.0,0.10765]
[1764349567794,0.1145898,91150.0,91149.0,0.10765]
[1764349568088,0.90910467,91150.0,91149.0,0.10765]
[1764349568590,0.1145909,91141.0,91140.0,0.14058458]
[1764349568782,0.23813487,91141.0,91140.0,0.14058458]
[1764349568981,0.02451487,91141.0,91140.0,0.14058458]
[1764349569394,0.13910577,91141.0,91140.0,0.14058458]
[1764349569685,0.18813487,91141.0,91140.0,0.14058458]
[1764349569995,0.19910577,91141.0,91140.0,0.14058458]
[1764349570700,0.43910577,91141.0,91140.0,0.14058458]
[1764349570988,0.88910577,91141.0,91140.0,0.14058458]
[1764349571188,0.88910577,91141.0,91140.0,0.16658458]
[1764349571883,0.69910577,91141.0,91140.0,0.16658458]
[1764349572091,0.87910577,91141.0,91140.0,0.16658458]
[1764349572387,0.85362,91141.0,91140.0,0.16658458]
[1764349572584,0.85362,91141.0,91140.0,0.02616458]
[1764349572986,0.87816611,91141.0,91140.0,0.02616458]
[1764349574380,0.57816611,91141.0,91140.0,0.02616458]
[1764349574586,0.93816611,91141.0,91140.0,0.02616458]
[1764349574787,0.93916611,91141.0,91140.0,0.02616458]
[1764349575789,0.51462,91141.0,91140.0,0.12262458]
[1764349575984,0.53462,91141.0,91140.0,0.12262458]
[1764349577290,0.97462,91141.0,91140.0,0.12262458]
[1764349577597,0.97462,91141.0,91140.0,0.02616458]
[1764349578089,0.37462,91141.0,91140.0,0.07386458]
[1764349578295,0.50462,91141.0,91140.0,0.09662458]
[1764349578594,0.50362,91141.0,91140.0,0.12262458]
[1764349578795,0.50362,91141.0,91140.0,0.09662458]
[1764349578996,0.50362,91141.0,91140.0,0.12262458]
[1764349579799,0.38362,91141.0,91140.0,0.12262458]
[1764349581092,0.14362,91141.0,91140.0,0.12262458]
[1764349581284,0.10362,91141.0,91140.0,0.12262458]
[1764349581481,0.34362,91141.0,91140.0,0.12262458]
[1764349582294,0.34362,91141.0,91140.0,0.02616458]
[1764349582488,0.72362,91141.0,91140.0,0.02616458]
[1764349583192,0.74819916,91141.0,91140.0,0.02616458]
[1764349584395,0.09548,91121.0,91120.0,0.12923]
[1764349584589,0.87548,91121.0,91120.0,0.12923]
[1764349584787,0.09548,91111.0,91110.0,0.0001425]
[1764349584988,0.86548,91111.0,91110.0,0.0001425]
[1764349585390,0.46548,91111.0,91110.0,0.0001425]
[1764349585588,0.46548,91111.0,91110.0,0.1255825]
[1764349585794,0.46548,91111.0,91110.0,0.1394189]
[1764349586188,0.18548,91111.0,91110.0,0.1394189]
[1764349586393,0.09548,91111.0,91110.0,0.1394189]
[1764349586793,0.38548,91111.0,91110.0,0.1394189]
[1764349587384,0.79548,91111.0,91110.0,0.0616789]
[1764349587585,0.38548,91111.0,91110.0,0.1336889]
[1764349587783,0.54548,91111.0,91110.0,0.1336889]
[1764349587998,0.54748,91111.0,91110.0,0.1586889]
[1764349588591,0.54748,91111.0,91110.0,0.1576889]
[1764349589098,0.54548,91111.0,91110.0,0.1336889]
[1764349589286,0.54748,91111.0,91110.0,0.1576889]
[1764349589691,0.002,91111.0,91110.0,0.1576889]
[1764349590102,0.00016458,91120.0,91119.0,0.08856]
[1764349590886,0.00016458,91120.0,91118.0,0.0109736]
[1764349591092,0.00016458,91120.0,91119.0,0.08856]
[1764349591287,0.00116458,91120.0,91119.0,0.10656]
[1764349591893,0.00216458,91120.0,91119.0,0.08856]
[1764349592293,0.00216458,91120.0,91119.0,0.43856]
[1764349592995,0.00216458,91120.0,91119.0,0.45756]
[1764349593297,0.1009508,91142.0,91141.0,0.08856]
[1764349593499,0.9709508,91142.0,91141.0,0.08856]
[1764349594398,0.08998,91133.0,91132.0,0.08872458]
[1764349594891,0.48998,91133.0,91132.0,0.00016458]
[1764349595097,0.58998,91133.0,91132.0,0.00016458]
[1764349595703,0.59198,91133.0,91132.0,0.02416458]
[1764349595897,0.59198,91133.0,91132.0,0.06887458]
[1764349596099,0.09198,91133.0,91132.0,0.11172458]
[1764349596404,0.002,91133.0,91132.0,0.11172458]
[1764349596804,0.04658,91133.0,91132.0,0.11172458]
[1764349597105,0.09198,91133.0,91132.0,0.11172458]
[1764349597304,0.002,91133.0,91132.0,0.11172458]
[1764349597603,0.0269096,91152.0,91140.0,0.010971]
[1764349597801,0.0109699,91149.0,91138.0,0.25550457]
[1764349598098,0.2009499,91149.0,91148.0,0.08856]
[1764349598291,0.08998,91149.0,91148.0,0.08856]
[1764349598903,0.002,91152.0,91151.0,0.08856]
[1764349599096,0.11274,91161.0,91160.0,0.08856]
[1764349599296,0.09998,91161.0,91160.0,0.08856]
[1764349599698,0.09998,91161.0,91151.0,0.25566915]
[1764349599699,0.09025423,91166.0,91165.0,0.08856]
[1764349599905,0.11025423,91166.0,91165.0,0.08856]
[1764349600405,0.38027423,91166.0,91165.0,0.08856]
[1764349600601,0.38027423,91166.0,91151.0,0.25566915]
[1764349600602,0.08998,91157.0,91156.0,0.08856]
[1764349600796,0.37998,91157.0,91156.0,0.04471]
[1764349600996,0.42998,91157.0,91156.0,0.04471]
[1764349601397,0.11998,91157.0,91156.0,0.04471]
[1764349601597,0.11998,91157.0,91156.0,0.08856]
[1764349601792,0.04485423,91166.0,91165.0,0.08856]
[1764349602004,0.00027423,91166.0,91165.0,0.08856]
[1764349603307,0.00127423,91166.0,91165.0,0.08856]
[1764349603707,0.00227423,91166.0,91165.0,0.10856]
[1764349604503,0.08998,91189.0,91188.0,0.08856]
[1764349604702,0.24998,91189.0,91188.0,0.08856]
[1764349604914,0.08998,91197.0,91196.0,0.08856]
[1764349605202,0.79,91197.0,91179.0,0.25566915]
[1764349605402,0.58,91197.0,91180.0,0.0109662]
[1764349605610,0.08998,91180.0,91179.0,0.08872458]
[1764349605801,0.5178,91180.0,91179.0,0.00016458]
[1764349605997,0.8787662,91180.0,91179.0,0.00016458]
[1764349606196,0.8678,91180.0,91179.0,0.00016458]
[1764349606401,0.8787662,91180.0,91179.0,0.00016458]
[1764349606603,0.4678,91180.0,91179.0,0.00016458]
[1764349606803,0.5578,91180.0,91179.0,0.00016458]
[1764349607003,0.4678,91180.0,91179.0,0.00016458]
[1764349607412,0.08998,91180.0,91179.0,0.08872458]
[1764349607615,0.8978,91180.0,91179.0,0.00016458]
[1764349608110,0.8978,91180.0,91179.0,0.01616458]
[1764349608500,0.8978,91180.0,91179.0,0.00016458]
[1764349608699,0.04458,91161.0,91160.0,0.34406457]
[1764349608895,0.04458,91161.0,91160.0,0.08856]
[1764349609908,0.08998,91161.0,91160.0,0.08856]
[1764349610307,0.47998,91161.0,91151.0,0.25566905]
[1764349610512,0.02782,91160.0,91151.0,0.25566905]
[1764349610716,0.04458,91152.0,91151.0,0.34422905]
[1764349610906,0.08998,91152.0,91151.0,0.08872448]
[1764349611209,0.08998,91152.0,91151.0,0.00016448]
[1764349611809,0.08998,91152.0,91151.0,0.01416448]
[1764349612113,0.08998,91152.0,91151.0,0.02788215]
[1764349612514,0.08998,91152.0,91151.0,0.07259215]
[1764349613607,0.08998,91152.0,91151.0,0.11644215]
[1764349613812,0.08998,91152.0,91151.0,0.11544215]
[1764349614412,0.08998,91152.0,91151.0,0.11444215]
[1764349614809,0.1178,91160.0,91159.0,0.08856]
[1764349615016,0.19998,91160.0,91159.0,0.08856]
[1764349615216,0.48998,91160.0,91159.0,0.08856]
[1764349615517,0.5178,91160.0,91159.0,0.08856]
[1764349615820,0.9578,91160.0,91159.0,0.08856]
[1764349616017,0.1978,91160.0,91159.0,0.08856]
[1764349616219,0.5378,91160.0,91159.0,0.08856]
[1764349616515,0.09009,91153.0,91152.0,0.0994295]
[1764349616713,0.09009,91153.0,91152.0,0.08846]
[1764349617708,0.1164,91160.0,91159.0,0.08846]
[1764349617908,0.1464,91160.0,91159.0,0.08846]
[1764349618315,0.4264,91160.0,91159.0,0.08846]
[1764349618516,0.04587,91153.0,91152.0,0.1114295]
[1764349618719,0.04587,91153.0,91152.0,0.10046]
[1764349619112,0.09009,91153.0,91152.0,0.10046]
[1764349619819,0.09009,91153.0,91152.0,0.08846]
[1764349620320,0.09009,91153.0,91152.0,0.10046]
[1764349620512,0.09009,91153.0,91152.0,0.0569]
[1764349620726,0.09009,91153.0,91152.0,0.012]
[1764349620727,0.90009,91153.0,91152.0,0.012]
[1764349620915,0.04587,91127.0,91126.0,0.04517435]
[1764349621216,0.09009,91127.0,91126.0,0.08873435]
[1764349621524,0.85009,91127.0,91126.0,0.00027435]
[1764349622521,0.55009,91127.0,91126.0,0.00027435]
[1764349623913,0.09009,91127.0,91126.0,0.08873435]
[1764349624113,0.90009,91127.0,91126.0,0.00727435]
[1764349624513,0.09009,91118.0,91117.0,0.00016458]
[1764349624718,0.9110636,91118.0,91117.0,0.00016458]
[1764349625421,0.16009,91118.0,91117.0,0.08862458]
[1764349625622,0.04587,91118.0,91117.0,0.08862458]
[1764349626131,0.42009,91118.0,91117.0,0.00016458]
[1764349626319,0.42009,91118.0,91117.0,0.00516458]
[1764349626520,0.14009,91118.0,91117.0,0.05006458]
[1764349627021,0.24009,91118.0,91117.0,0.05006458]
[1764349627222,0.09009,91118.0,91117.0,0.09362458]
[1764349628122,0.04944,91132.0,91122.0,0.0109731]
[1764349628431,0.04944,91132.0,91131.0,0.08846]
[1764349628432,0.09009,91132.0,91131.0,0.08846]
[1764349631430,0.09109,91132.0,91131.0,0.08846]
[1764349632824,0.09109,91132.0,91131.0,0.0994321]
[1764349633329,0.09109,91132.0,91131.0,0.08846]
[1764349634727,0.09109,91132.0,91131.0,0.08983]
[1764349635123,0.001,91132.0,91131.0,0.1008021]
[1764349635324,0.001,91132.0,91131.0,0.08983]
[1764349635835,0.04642,91132.0,91131.0,0.10273877]
[1764349636022,0.08753,91132.0,91131.0,0.10273877]
[1764349636223,0.08753,91132.0,91131.0,0.10573877]
[1764349637231,0.0975001,91148.0,91134.0,0.01373]
[1764349637438,0.0975003,91146.0,91145.0,0.08773]
[1764349638731,0.08653,91146.0,91145.0,0.08773]